Cogmind - Beta 16.1 @@@ ROGUE MODE // 2026.01.25 @ 22:03:07 Player: JuustuToug Result: Destroyed by 6A-P1G(R) with Subdweller Laser Performance ------------- Evolutions (0) 0 Regions Visited (2) 400 Robots Destroyed (25) 125 Value Destroyed (465) 465 Prototype IDs (0) 0 Alien Tech Used (0) 0 Bonus (0) 0 TOTAL SCORE: 990 Bonus ------- None Cogmind --------- Core Integrity 0/250 Matter 255/300 Energy 241/250 System Corruption 0% Temperature Cool (6) Movement Rolling (120) Ox1 Location -10/Subcaves Parts ------- > --- POWER (1) -------- Ion Engine > --- PROPULSION (2) --- Subdweller Monowheel > --- UTILITY (2) ------ Large Storage Unit Seismic Detector > --- WEAPON (2) ------- Beam Cannon Subdweller Machine Gun > --- INVENTORY (15) --- Subdweller Power Source Disposable Heat Sink Sensor Array Signal Interpreter Improved Terrain Scanner Medium Laser Medium Laser Medium Laser Small Laser Assault Rifle Mining Claw Peak State ------------ > --- POWER ------------ Subdweller Power Source > --- PROPULSION ------- Light Treads Light Treads > --- UTILITY ---------- Large Storage Unit Seismic Detector > --- WEAPON ----------- Subdweller Laser Subdweller Machine Gun > --- INVENTORY -------- Ion Engine Subdweller Monowheel Sensor Array Signal Interpreter Improved Terrain Scanner Medium Laser Medium Laser Medium Laser Small Laser Beam Cannon Assault Rifle Mining Claw [Rating: 11] Favorites ----------- Power Ion Engine Engine Ion Engine Propulsion Light Treads Treads Light Treads Wheel Subdweller Monowheel Utility Seismic Detector Device Seismic Detector Storage Large Storage Unit Weapon Beam Cannon Energy Gun Small Laser Energy Cannon Beam Cannon Ballistic Gun Subdweller Machine Gun Slashing Weapon Mining Claw Build | -11 -10 -10 ------- Run | Yrd Mat Sub Slots Evolved . | . . . Power . | . . . Propulsion . | . . . Utility . | . . . Weapon . | . . . Parts Attached 20 | 7 5 8 Power 3 | 1 . 2 Engine 3 | 1 . 2 Core . | . . . Reactor . | . . . Propulsion 5 | 2 1 2 Treads 4 | 2 1 1 Leg . | . . . Wheel 1 | . . 1 Hover . | . . . Flight . | . . . Utility 3 | 2 1 . Device 1 | 1 . . Storage 2 | 1 1 . Processor . | . . . Hackware . | . . . Protection . | . . . Artifact . | . . . Weapon 9 | 2 3 4 Energy Gun 5 | 2 1 2 Energy Cannon 1 | . 1 . Ballistic Gun 2 | . . 2 Ballistic Cannon . | . . . Launcher . | . . . Special Weapon . | . . . Impact Weapon . | . . . Slashing Weapon 1 | . 1 . Piercing Weapon . | . . . Special Melee Weapon . | . . . Unidentified Prototypes . | . . . Parts Lost 8 | . 1 7 Power 1 | . . 1 Propulsion 4 | . 1 3 Utility . | . . . Weapon 3 | . . 3 Highest Loss Streak 3 | . 1 3 To Critical Strikes . | . . . Average Backups 9 | 1 7 11 Power . | . 1 . Propulsion . | . . . Utility 2 | . 1 3 Weapon 5 | . 4 6 Tool/Special . | . . . Unused Backups 8 | . . 8 Power 1 | . . 1 Propulsion . | . . . Utility 4 | . . 4 Weapon 3 | . . 3 Tool/Special . | . . . Average Slot Usage (%) 99 | . 98 99 Engine 13 | . 13 14 Treads 25 | . 27 22 Wheel 2 | . . 5 Device 13 | . 13 14 Storage 14 | . 14 14 Energy Gun 14 | . 14 14 Energy Cannon 9 | . 12 6 Ballistic Gun 3 | . . 6 Peak Build Rating 11 | 7 8 11 Average Rating 8 | 5 7 10 On Entrance 5 | . 7 8 Avg Prop Armor Cover (%) 12 | . . 12 Naked Turns . | . . . Heaviest Build 34 | 13 31 34 Greatest Support 40 | 40 40 40 Greatest Overweight (x) 1 | . . 1 Average Overweight (x) . | . . . Largest Inventory Capacity 15 | 8 15 15 Average Capacity 12 | 7 10 15 Most Carried 13 | 3 11 13 Average Carried 9 | 1 7 11 Final Capacity 15 | 8 15 15 Final Carried 11 | 3 11 11 Class Distribution -------------------- 81% | Mutant 18% | Scavenger-Mutant Dominant Class ---------------- Mutant | -10/Materials Mutant | -10/Subcaves Resources | -11 -10 -10 ----------- Run | Yrd Mat Sub Matter Collected 478 | 265 65 148 Remotely . | . . . Salvage Created 775 | 130 454 191 Parts 53 | 11 32 10 Haulers Intercepted 2 | . 2 . Recyclers Shooed . | . . . Parts Field Recycled . | . . . Retrieved Matter . | . . . Parts Self-Destructed 5 | . . 5 Prevented . | . . . Parts Restored . | . . . Kills | -11 -10 -10 ------- Run | Yrd Mat Sub Combat Hostiles Destroyed 14 | . 9 5 Guns 9 | . 4 5 Cannons 5 | . 5 . Classes Destroyed 8 | 2 5 1 Builder 2 | . 2 . Tunneler 4 | 3 1 . Hauler 2 | . 2 . Recycler 1 | 1 . . Watcher 2 | . 2 . Swarmer 6 | . 6 . Grunt 3 | . 3 . Subdweller 5 | . . 5 Best Kill Streak 5 | 4 5 2 Combat Bots Only 3 | . 3 2 Max Kills in Single Turn 1 | 1 1 1 Gunslinging . | . . . Exploded . | . . . Melee . | . . . Uniques/NPCs Destroyed . | . . . Combat | -11 -10 -10 -------- Run | Yrd Mat Sub Hostile Shots Fired 129 | . 68 61 Missed 27 | . 16 11 Hits 102 | . 52 50 Projectile 102 | . 52 50 Critical Strikes 2 | . 1 1 Damage Taken 1636 | . 456 1180 Core 268 | . 58 210 Absorbed by Shields . | . . . Regen/Repaired (Parts) 185 | . 185 . Core Remaining (%) 100 | 100 . . Volleys Fired 102 | 8 39 55 Largest 2 | 2 2 2 Hottest 120 | 80 110 120 Shots Fired 192 | 16 75 101 Gun 137 | 16 38 83 Cannon 55 | . 37 18 Launcher . | . . . Special . | . . . Kinetic 29 | . . 29 Thermal 163 | 16 75 72 Explosive . | . . . Electromagnetic . | . . . Robot Hit Streak 16 | 8 11 16 Robot Miss Streak 7 | 4 7 1 Penetration Max . | . . . Secondary Targets . | . . . Shots Hit Robots 109 | 9 42 58 Core Hits 35 | 5 19 11 Critical Kills . | . . . Critical Parts Destroyed . | . . . Critical Strikes 4 | . 2 2 Burn 2 | . 2 . Destroy 2 | . . 2 Melee Attacks 6 | . 2 4 Impact . | . . . Slashing 6 | . 2 4 Piercing . | . . . Sneak Attacks . | . . . Combat Hostiles . | . . . Follow-up Attacks . | . . . Damage Inflicted 1846 | 96 637 1113 Guns 1314 | 96 298 920 Cannons 510 | . 317 193 Explosions . | . . . Melee 22 | . 22 . Ramming . | . . . Kinetic 403 | . . 403 Thermal 1421 | 96 615 710 Explosive . | . . . Electromagnetic . | . . . Impact . | . . . Slashing 22 | . 22 . Piercing . | . . . Highest Corruption . | . . . Average Corruption . | . . . Corruption Purged . | . . . Corruption Blocked . | . . . Overload Shots . | . . . Overflow Damage . | . . . Projectiles . | . . . Explosions . | . . . Melee . | . . . Knockbacks . | . . . Impact . | . . . Kinetic . | . . . Secondary . | . . . Self-Inflicted Damage . | . . . Shots . | . . . Rammed . | . . . Targets Rammed . | . . . Kicked . | . . . Crushed . | . . . Highest Temperature 328 | 144 328 30 Average Temperature 127 | 72 150 9 Received Heat Transfer 366 | . 69 297 Effects 3 | . 3 . Energy Bleed 1 | . 1 . Interference 2 | . 2 . Siege Activations . | . . . Martial Activations . | . . . Shielding Activations . | . . . Robots Disrupted . | . . . Combat Hostiles . | . . . Robots Corrupted . | . . . Combat Hostiles . | . . . Parts Fried . | . . . Impact Corruptions . | . . . Robots Melted . | . . . Combat Hostiles . | . . . Parts Melted 10 | . 6 4 Heat Transferred 3096 | 225 1619 1252 Parts Sabotaged . | . . . Parts Stolen . | . . . Parts Stripped . | . . . Power Chain Reactions . | . . . Alert | -11 -10 -10 ------- Run | Yrd Mat Sub Maximum Alert Level . | . . . Low Security (%) 100 | 100 100 . Level 1 . | . . . Level 2 . | . . . Level 3 . | . . . Level 4 . | . . . Level 5 . | . . . High Security . | . . . Max Security . | . . . Peak Influence 153 | 15 153 . Initial . | . . . Average 34 | 3 38 . Influence Increases 372 | 20 352 . Destroy 0b10 Robot/C 180 | . 180 . Destroy 0b10 Robot/NC 55 | 20 35 . Destroy Leader 38 | . 38 . Successful Hack 53 | . 53 . Disable Machine 15 | . 15 . Destroy Structure 1 | . 1 . Lose Combat Pursuer 30 | . 30 . Influence Decreases 372 | 20 352 . Time Decay 234 | 20 214 . Lost Part 10 | . 10 . Purge Threat 128 | . 128 . Squads Dispatched . | . . . Investigation . | . . . Extermination . | . . . Reinforcement . | . . . Assault . | . . . Garrison . | . . . Intercept . | . . . Searches Triggered . | . . . Construction Impeded . | . . . Haulers Reinforced . | . . . Active Scanning Responses . | . . . Cargo Convoy Interrupts . | . . . Stealth | -11 -10 -10 --------- Run | Yrd Mat Sub Distress Signals . | . . . Communications Jammed . | . . . Distress Signals . | . . . Times Spotted 25 | . 17 8 Peak Tracking Total 3 | . 3 3 Tactical Retreats 1 | . 1 . Traps | -11 -10 -10 ------- Run | Yrd Mat Sub Traps Triggered . | . . . Indirectly . | . . . Trap Hack Attempts . | . . . Triggered . | . . . Disarmed . | . . . Reprogrammed . | . . . Reused . | . . . Traps Extracted . | . . . Installed . | . . . Triggered . | . . . Machines | -11 -10 -10 ---------- Run | Yrd Mat Sub Machines Disabled 1 | . 1 . Max in Single Turn 1 | . 1 . Machines Repaired . | . . . Machines Dismantled . | . . . Machines Sabotaged . | . . . Overloaded Fab Kills . | . . . Hacking | -11 -10 -10 --------- Run | Yrd Mat Sub Machines Accessed 9 | . 9 . Terminals 8 | . 8 . Fabricators . | . . . Repair Stations 1 | . 1 . Recycling Units . | . . . Scanalyzers . | . . . Garrison Access . | . . . Total Hacks 44 | . 44 . Successful 25 | . 25 . Failed 18 | . 18 . Catastrophic 3 | . 3 . Database Lockouts 1 | . 1 . Manual 24 | . 24 . Terminals 35 | . 35 . Fabricators . | . . . Repair Stations 9 | . 9 . Recycling Units . | . . . Scanalyzers . | . . . Garrison Access . | . . . Terminal Hacks 8 | . 8 . Part Schematic 1 | . 1 . Branch Access Points 1 | . 1 . Terminal Index 2 | . 2 . Unreport Threat 1 | . 1 . Locate Traps 1 | . 1 . Registered Components 2 | . 2 . Fabricator Hacks . | . . . Repair Station Hacks 8 | . 8 . Scan Component 4 | . 4 . Repair 4 | . 4 . Recycling Unit Hacks . | . . . Scanalyzer . | . . . Garrison Access Hacks . | . . . Unauthorized Hacks 9 | . 9 . Terminals 9 | . 9 . Botnet 3 | . 3 . Operators 1 | . 1 . Skim 5 | . 5 . Fabricators . | . . . Repair Stations . | . . . Recycling Units . | . . . Scanalyzers . | . . . Garrison Access . | . . . Data Cores Recovered . | . . . Used . | . . . Hacking Detections 9 | . 9 . Full Trace Events . | . . . Feedback Events . | . . . Feedback Blocked . | . . . Robot Schematics Acquired . | . . . Robots Built . | . . . Authchips . | . . . Time . | . . . Total Robot Build Rating . | . . . Part Schematics Acquired 1 | . 1 . Parts Built . | . . . Authchips . | . . . Time . | . . . Total Part Build Rating . | . . . Part Studies Acquired . | . . . Parts Repaired 4 | . 4 . Time 104 | . 104 . Parts Recycled . | . . . Recycled Matter . | . . . Retrieved Matter . | . . . Retrieved Components . | . . . Parts Scanalyzed . | . . . Part Schematics Acquired . | . . . Parts Damaged . | . . . Bothacking | -11 -10 -10 ------------ Run | Yrd Mat Sub Used RIF Installer . | . . . Robots Hacked . | . . . Non-combat . | . . . Combat . | . . . Robot Hacks Applied . | . . . Relay Couplers Released . | . . . Fabnet Peak Effective % . | . . . Robots Rewired . | . . . Allies Hacked . | . . . Hacks Repelled . | . . . Allies | -11 -10 -10 -------- Run | Yrd Mat Sub Total Allies . | . . . Largest Group . | . . . Highest-Rated Group . | . . . Highest-Rated Ally . | . . . Total Orders . | . . . Ally Attacks . | . . . Total Damage . | . . . Kills . | . . . Allies Corrupted . | . . . Allies Melted . | . . . Intel | -11 -10 -10 ------- Run | Yrd Mat Sub Active Infowar (turns) 2232 | 25 1113 1094 Seismic 2232 | 25 1113 1094 Robot Analysis Total . | . . . Derelict Logs Recovered . | . . . Drone Launches . | . . . Drone Recoveries . | . . . Exploration | -11 -10 -10 ------------- Run | Yrd Mat Sub Turns Passed 2363 | 119 1150 1094 Spaces Moved 1058 | 52 423 583 Core 5 | 5 . . Treads 795 | 47 423 325 Legs . | . . . Wheels 258 | . . 258 Hover . | . . . Flight . | . . . Fastest Speed 50 | 50 160 120 Average Speed 150 | 149 160 143 Slowest Speed 240 | 160 160 240 Overloaded Moves . | . . . Propulsion Burnouts . | . . . Robots Hopped . | . . . Potential Cave-ins . | . . . Cave-ins Triggered . | . . . Exploration Rate (%) 41 | 4 80 39 Regions Visited 2 Branch Regions 1 Pre-discovered Areas 1 | . . 1 Known Exits Taken . | . . . Unknown Exits Taken 2 | 1 1 . Scrap Searched . | . . . Spaces Dug . | . . . Terrain Destroyed . | . . . Melee . | . . . Projectile . | . . . AOE . | . . . Terrain Rammed . | . . . Walls Destroyed . | . . . Machines Disabled . | . . . Actions | -11 -10 -10 --------- Run | Yrd Mat Sub Total 1616 | 74 815 727 Wait 401 | 5 331 65 Move 1056 | 51 422 583 Hop . | . . . Pick Up 18 | 3 9 6 Fast Attach 11 | 7 4 . Attach 7 | . 1 6 Detach . | . . . Swap 12 | . 5 7 Drop 3 | . 2 1 Fire 102 | 8 39 55 Melee 6 | . 2 4 Ram . | . . . Kick . | . . . Crush . | . . . Escape Stasis . | . . . Rewire . | . . . Trap . | . . . Miscellaneous . | . . . Route ------- -11/Scrapyard -10/Materials (discovered 5 exits: *Mat x3 / *Min / [*Sub]) -10/Subcaves (discovered 2 exits: *Mat / Rec) History --------- Turn | Location | Event 7 | -11/Scrapyard | Discovered new exit (range 14) 120 | -11/Scrapyard | Entered Materials 303 | -10/Materials | Build established: Mutant 328 | -10/Materials | Discovered new exit (range 7) 492 | -10/Materials | Discovered new exit (range 5) 652 | -10/Materials | Central database locked down 872 | -10/Materials | Learned 2 Storage zone layouts 895 | -10/Materials | Identified exit to Mines 939 | -10/Materials | Identified exit to Materials 998 | -10/Materials | Learned Storage stockpile data 1038 | -10/Materials | Repaired Seismic Detector 1065 | -10/Materials | Repaired Lgt. Treads 1086 | -10/Materials | Learned Storage stockpile data 1093 | -10/Materials | Repaired Beam Cannon 1120 | -10/Materials | Repaired Ion Engine 1134 | -10/Materials | Discovered new exit (range 14) 1195 | -10/Materials | Learned location of 2 exits from Subcaves 1270 | -10/Materials | Entered Subcaves 1271 | -10/Subcaves | Identified exit to Recycling 1271 | -10/Subcaves | Identified exit to Materials 1655 | -10/Subcaves | Shifting Twisted Machinery released Flamer 1812 | -10/Subcaves | Build established: Scavenger-Mutant 1905 | -10/Subcaves | Learned location of Zion (-7) 1905 | -10/Subcaves | Met a Zionite searching for "candidates" 1927 | -10/Subcaves | Core integrity fell below 50% 2241 | -10/Subcaves | Build established: Mutant 2316 | -10/Subcaves | Visited 4L-MR0's lab 2329 | -10/Subcaves | Core integrity fell below 20% 2364 | -10/Subcaves | Destroyed by 6A-P1G(R) with Subdweller Laser Last Messages --------------- 01961_ Acquired 29 matter. 01966_ Acquired Sub. Power Source. 01969_ Acquired Disposable Heat Sink. 01993_ Subatomizers dissect the Mak. System Shield. 02042_ Acquired 28 matter. 02246_ Subatomizers dissect the Sub. Power Source, destroying it. 02246_ Acquired 1 matter. 02250_ Acquired Sub. Machine Gun. 02332_ Lgt. Treads destroyed. 02335_ Disposable Heat Sink melted. 02335_ QB-OPI(R) destroyed. 02342_ S1-TVF(R) suffers critical hit (Destroy). 02351_ S1-TVF(R) destroyed. 02356_ Sub. Machine Gun destroyed. 02360_ Sub. Laser destroyed. 02363_ 6A-P1G(R) affixes Scrap Shield Fragment to Scrap Shield. Map ----- +----------------------------------------------------+ | | | | | | | | | | | | | | | | | | | | | | | | | | | | | | | | | | | | | | | | | | | ?????????????????????????????????????????????????? | | ??????????????????????????####???????????????????? | | ????????????????####?????? < ##??????????????????? | | ????????????????#*" ??##!<<<#??????????????????? | | ?????????????????## #@<< <#??????????????????? | | ?????????????????"""X" %%R < #??????????????????? | | ?????????????????"""""""#